[Event "Titled Tuesday Blitz January 25 2022"]
[White "Gaehwiler, Gabriel"]
[Black "Morris-Suzuki, Sophie"]
[WhiteFideId "1314530"]
[BlackFideId "30922615"]
[WhiteElo "2383"]
[BlackElo "2521"]
[Result "0-1"]
[Round "04"]
[TimeControl "180+1"]
[Date "2022.01.26"]
[WhiteClock "0:00:01"]
[BlackClock "0:00:03"]

1. Nf3 {[%clk 0:03:00]}  d5 {[%clk 0:02:59]} 2. c4 {[%clk 0:03:00]}  d4 {[%clk 0:02:59]} 3. e3 {[%clk 0:03:00]}  c5 {[%clk 0:02:59]} 4. b4 {[%clk 0:02:58]}  Nc6 {[%clk 0:02:43]} 5. b5 {[%clk 0:02:57]}  Na5 {[%clk 0:02:28]} 6. exd4 {[%clk 0:02:55]}  cxd4 {[%clk 0:02:28]} 7. Bb2 {[%clk 0:02:54]}  e5 {[%clk 0:02:28]} 8. Nxe5 {[%clk 0:02:49]}  Be6 {[%clk 0:02:04]} 9. Qa4 {[%clk 0:02:42]}  b6 {[%clk 0:02:00]} 10. Bd3 {[%clk 0:02:32]}  Nf6 {[%clk 0:01:54]} 11. Nc6 {[%clk 0:02:28]}  Nxc6 {[%clk 0:01:53]} 12. bxc6 {[%clk 0:02:28]}  Bd6 {[%clk 0:01:37]} 13. Bxd4 {[%clk 0:02:03]}  Bc7 {[%clk 0:01:37]} 14. Bxf6 {[%clk 0:01:17]}  Qxd3 {[%clk 0:01:36]} 15. Bc3 {[%clk 0:00:56]}  Bxc4 {[%clk 0:01:26]} 16. Kd1 {[%clk 0:00:50]}  O-O {[%clk 0:00:55]} 17. Na3 {[%clk 0:00:45]}  b5 {[%clk 0:00:47]} 18. Qc2 {[%clk 0:00:45]}  Qe2+ {[%clk 0:00:47]} 19. Kc1 {[%clk 0:00:45]}  Bd3 {[%clk 0:00:48]} 20. Qd1 {[%clk 0:00:43]}  Qe7 {[%clk 0:00:37]} 21. Nc2 {[%clk 0:00:37]}  Bd6 {[%clk 0:00:33]} 22. Re1 {[%clk 0:00:26]}  Ba3+ {[%clk 0:00:25]} 23. Kb1 {[%clk 0:00:23]}  Qc5 {[%clk 0:00:24]} 24. Qg4 {[%clk 0:00:20]}  f6 {[%clk 0:00:17]} 25. Qd4 {[%clk 0:00:18]}  Qf5 {[%clk 0:00:12]} 26. Rc1 {[%clk 0:00:07]}  Bxc1 {[%clk 0:00:12]} 27. Kxc1 {[%clk 0:00:08]}  Bxc2 {[%clk 0:00:12]} 28. g4 {[%clk 0:00:06]}  Qe4 {[%clk 0:00:12]} 29. Kb2 {[%clk 0:00:05]}  Qxd4 {[%clk 0:00:12]} 30. Bxd4 {[%clk 0:00:06]}  Bd3 {[%clk 0:00:12]} 31. Rc1 {[%clk 0:00:06]}  Bc4 {[%clk 0:00:12]} 32. a4 {[%clk 0:00:06]}  Rac8 {[%clk 0:00:12]} 33. axb5 {[%clk 0:00:05]}  Bxb5 {[%clk 0:00:12]} 34. c7 {[%clk 0:00:06]}  Rf7 {[%clk 0:00:11]} 35. Re1 {[%clk 0:00:06]}  Rfxc7 {[%clk 0:00:11]} 36. Bc3 {[%clk 0:00:07]}  Kf7 {[%clk 0:00:09]} 37. Re4 {[%clk 0:00:06]}  Bd3 {[%clk 0:00:09]} 38. Rd4 {[%clk 0:00:05]}  Bg6 {[%clk 0:00:08]} 39. Rb4 {[%clk 0:00:05]}  Rd7 {[%clk 0:00:08]} 40. h4 {[%clk 0:00:04]}  Rcc7 {[%clk 0:00:06]} 41. Ka3 {[%clk 0:00:03]}  Rb7 {[%clk 0:00:06]} 42. Ra4 {[%clk 0:00:04]}  Bc2 {[%clk 0:00:05]} 43. Ra5 {[%clk 0:00:03]}  g6 {[%clk 0:00:05]} 44. Ra6 {[%clk 0:00:02]}  Rb6 {[%clk 0:00:03]} 45. Ra5 {[%clk 0:00:02]}  Rdb7 {[%clk 0:00:03]} 46. h5 {[%clk 0:00:01]}  gxh5 {[%clk 0:00:03]} 0-1


[Site "https://www.chess.com"]

[Event "Titled Tuesday Blitz January 25 2022"]
[White "Gunina, Valentina"]
[Black "Osmak, Yuliia"]
[WhiteFideId "4167570"]
[BlackFideId "14101602"]
[WhiteElo "2465"]
[BlackElo "2302"]
[Result "1-0"]
[Round "04"]
[TimeControl "180+1"]
[Date "2022.01.26"]
[WhiteClock "0:00:17"]
[BlackClock "0:00:01"]

1. d4 {[%clk 0:03:00]}  Nf6 {[%clk 0:02:58]} 2. c4 {[%clk 0:03:00]}  e6 {[%clk 0:02:58]} 3. Nf3 {[%clk 0:03:00]}  b6 {[%clk 0:02:56]} 4. g3 {[%clk 0:02:59]}  Bb7 {[%clk 0:02:55]} 5. Bg2 {[%clk 0:03:00]}  Be7 {[%clk 0:02:55]} 6. O-O {[%clk 0:03:00]}  O-O {[%clk 0:02:56]} 7. Nc3 {[%clk 0:03:00]}  Ne4 {[%clk 0:02:51]} 8. Bd2 {[%clk 0:03:00]}  Bf6 {[%clk 0:02:46]} 9. Re1 {[%clk 0:03:00]}  Nxd2 {[%clk 0:02:44]} 10. Qxd2 {[%clk 0:02:59]}  d6 {[%clk 0:02:39]} 11. e4 {[%clk 0:02:59]}  Nd7 {[%clk 0:02:38]} 12. Rad1 {[%clk 0:02:44]}  g6 {[%clk 0:02:33]} 13. e5 {[%clk 0:02:42]}  Bg7 {[%clk 0:02:32]} 14. Qf4 {[%clk 0:02:41]}  Qe7 {[%clk 0:02:13]} 15. Nb5 {[%clk 0:02:31]}  dxe5 {[%clk 0:01:54]} 16. dxe5 {[%clk 0:02:30]}  Nc5 {[%clk 0:01:39]} 17. b4 {[%clk 0:02:30]}  Na4 {[%clk 0:01:34]} 18. a3 {[%clk 0:02:29]}  a6 {[%clk 0:01:32]} 19. Nbd4 {[%clk 0:02:24]}  c5 {[%clk 0:01:29]} 20. Nc2 {[%clk 0:02:24]}  Rac8 {[%clk 0:01:19]} 21. Ne3 {[%clk 0:02:24]}  cxb4 {[%clk 0:01:11]} 22. axb4 {[%clk 0:02:22]}  Qxb4 {[%clk 0:01:11]} 23. Ng4 {[%clk 0:02:17]}  Rxc4 {[%clk 0:00:57]} 24. Nd4 {[%clk 0:01:50]}  Bxg2 {[%clk 0:00:54]} 25. Kxg2 {[%clk 0:01:50]}  Nc3 {[%clk 0:00:50]} 26. Nf6+ {[%clk 0:01:40]}  Kh8 {[%clk 0:00:33]} 27. Qh4 {[%clk 0:01:30]}  h6 {[%clk 0:00:32]} 28. Rd3 {[%clk 0:01:26]}  Nb5 {[%clk 0:00:27]} 29. Red1 {[%clk 0:01:20]}  Nxd4 {[%clk 0:00:21]} 30. Rxd4 {[%clk 0:01:20]}  b5 {[%clk 0:00:18]} 31. Qf4 {[%clk 0:00:59]}  Qc5 {[%clk 0:00:13]} 32. Nd7 {[%clk 0:00:53]}  Qc6+ {[%clk 0:00:13]} 33. Kh3 {[%clk 0:00:53]}  Rxd4 {[%clk 0:00:12]} 34. Rxd4 {[%clk 0:00:52]}  g5 {[%clk 0:00:06]} 35. Qd2 {[%clk 0:00:29]}  Rd8 {[%clk 0:00:06]} 36. Qd3 {[%clk 0:00:30]}  Qc7 {[%clk 0:00:05]} 37. Rd6 {[%clk 0:00:25]}  Qc8 {[%clk 0:00:02]} 38. f4 {[%clk 0:00:19]}  Rg8 {[%clk 0:00:02]} 39. fxg5 {[%clk 0:00:17]}  hxg5 {[%clk 0:00:02]} 40. Qf3 {[%clk 0:00:17]}  Qe8 {[%clk 0:00:01]} 41. Qh5+ {[%clk 0:00:17]}  Bh6 {[%clk 0:00:01]} 42. Qxh6# {[%clk 0:00:17]} 1-0


[Site "https://www.chess.com"]

[Event "Titled Tuesday Blitz January 25 2022"]
[White "Guseva, Marina"]
[Black "Srihari L R"]
[WhiteFideId "4149351"]
[BlackFideId "46617116"]
[WhiteElo "2232"]
[BlackElo "2121"]
[Result "0-1"]
[Round "04"]
[TimeControl "180+1"]
[Date "2022.01.26"]
[WhiteClock "0:00:30"]
[BlackClock "0:01:07"]

1. d4 {[%clk 0:03:00]}  f5 {[%clk 0:02:55]} 2. c4 {[%clk 0:02:59]}  Nf6 {[%clk 0:02:55]} 3. g3 {[%clk 0:02:59]}  e6 {[%clk 0:02:55]} 4. Bg2 {[%clk 0:02:58]}  d5 {[%clk 0:02:54]} 5. Nh3 {[%clk 0:02:58]}  c6 {[%clk 0:02:54]} 6. Qc2 {[%clk 0:02:57]}  Bd6 {[%clk 0:02:54]} 7. O-O {[%clk 0:02:56]}  O-O {[%clk 0:02:54]} 8. Bg5 {[%clk 0:02:55]}  Nbd7 {[%clk 0:02:50]} 9. e3 {[%clk 0:02:49]}  Qe8 {[%clk 0:02:49]} 10. Bxf6 {[%clk 0:02:48]}  Nxf6 {[%clk 0:02:48]} 11. cxd5 {[%clk 0:02:40]}  exd5 {[%clk 0:02:48]} 12. Nf4 {[%clk 0:02:39]}  Ne4 {[%clk 0:02:45]} 13. Nd2 {[%clk 0:02:34]}  Bd7 {[%clk 0:02:44]} 14. Nd3 {[%clk 0:02:32]}  Qe7 {[%clk 0:02:41]} 15. a3 {[%clk 0:02:26]}  Rf6 {[%clk 0:02:32]} 16. Rae1 {[%clk 0:02:24]}  h5 {[%clk 0:02:30]} 17. f4 {[%clk 0:02:22]}  h4 {[%clk 0:02:27]} 18. Nxe4 {[%clk 0:02:22]}  fxe4 {[%clk 0:02:26]} 19. Ne5 {[%clk 0:02:21]}  Bxe5 {[%clk 0:02:22]} 20. fxe5 {[%clk 0:02:19]}  Rg6 {[%clk 0:02:19]} 21. gxh4 {[%clk 0:02:10]}  Qxh4 {[%clk 0:02:11]} 22. Qf2 {[%clk 0:01:42]}  Qg5 {[%clk 0:01:49]} 23. Kh1 {[%clk 0:01:34]}  Be6 {[%clk 0:01:43]} 24. Re2 {[%clk 0:01:33]}  Kh7 {[%clk 0:01:36]} 25. Qf4 {[%clk 0:01:27]}  Qh5 {[%clk 0:01:30]} 26. Ref2 {[%clk 0:01:19]}  Rg4 {[%clk 0:01:29]} 27. Bf3 {[%clk 0:00:52]}  exf3 {[%clk 0:01:26]} 28. Qxf3 {[%clk 0:00:51]}  Rh4 {[%clk 0:01:21]} 29. Qg3 {[%clk 0:00:43]}  Rh3 {[%clk 0:01:19]} 30. Qg2 {[%clk 0:00:41]}  Qg6 {[%clk 0:01:12]} 31. Rf3 {[%clk 0:00:33]}  Qxg2+ {[%clk 0:01:11]} 32. Kxg2 {[%clk 0:00:33]}  Rxf3 {[%clk 0:01:09]} 33. Rxf3 {[%clk 0:00:32]}  Kg8 {[%clk 0:01:08]} 34. b4 {[%clk 0:00:30]}  a5 {[%clk 0:01:07]} 0-1


[Site "https://www.chess.com"]

[Event "Titled Tuesday Blitz January 25 2022"]
[White "Hakemi, Arman"]
[Black "Mikhalsky, Vladimir"]
[WhiteFideId "22520805"]
[BlackFideId "14144352"]
[WhiteElo "2208"]
[BlackElo "2248"]
[Result "1-0"]
[Round "04"]
[TimeControl "180+1"]
[Date "2022.01.26"]
[WhiteClock "0:00:14"]
[BlackClock "0:00:02"]

1. e4 {[%clk 0:03:00]}  g6 {[%clk 0:02:48]} 2. d4 {[%clk 0:03:00]}  Bg7 {[%clk 0:02:48]} 3. Nc3 {[%clk 0:03:00]}  d6 {[%clk 0:02:47]} 4. f4 {[%clk 0:03:00]}  a6 {[%clk 0:02:46]} 5. Nf3 {[%clk 0:03:01]}  b5 {[%clk 0:02:46]} 6. Bd3 {[%clk 0:03:01]}  Bb7 {[%clk 0:02:41]} 7. e5 {[%clk 0:03:01]}  Nh6 {[%clk 0:02:40]} 8. Be4 {[%clk 0:03:00]}  Bxe4 {[%clk 0:02:28]} 9. Nxe4 {[%clk 0:03:01]}  Nd7 {[%clk 0:02:23]} 10. O-O {[%clk 0:02:51]}  O-O {[%clk 0:02:23]} 11. c3 {[%clk 0:02:51]}  Nb6 {[%clk 0:02:14]} 12. h3 {[%clk 0:02:47]}  Rc8 {[%clk 0:02:06]} 13. Qe2 {[%clk 0:02:42]}  f6 {[%clk 0:01:54]} 14. Bd2 {[%clk 0:01:43]}  Nc4 {[%clk 0:01:48]} 15. b3 {[%clk 0:01:22]}  Nxd2 {[%clk 0:01:37]} 16. Nexd2 {[%clk 0:01:22]}  Nf5 {[%clk 0:01:34]} 17. Ne4 {[%clk 0:00:54]}  d5 {[%clk 0:01:30]} 18. Nc5 {[%clk 0:00:51]}  Ng3 {[%clk 0:01:30]} 19. Qf2 {[%clk 0:00:51]}  Ne4 {[%clk 0:01:24]} 20. Qe3 {[%clk 0:00:46]}  Nxc5 {[%clk 0:01:22]} 21. dxc5 {[%clk 0:00:46]}  fxe5 {[%clk 0:01:11]} 22. fxe5 {[%clk 0:00:40]}  Rf5 {[%clk 0:00:56]} 23. g4 {[%clk 0:00:33]}  Rf8 {[%clk 0:00:49]} 24. Nd4 {[%clk 0:00:33]}  Qd7 {[%clk 0:00:48]} 25. c6 {[%clk 0:00:31]}  Qe8 {[%clk 0:00:46]} 26. Rxf8+ {[%clk 0:00:24]}  Bxf8 {[%clk 0:00:46]} 27. e6 {[%clk 0:00:21]}  Bg7 {[%clk 0:00:43]} 28. Rf1 {[%clk 0:00:21]}  Bxd4 {[%clk 0:00:40]} 29. Qxd4 {[%clk 0:00:21]}  Qxc6 {[%clk 0:00:37]} 30. Rf7 {[%clk 0:00:22]}  Qb6 {[%clk 0:00:37]} 31. Rxe7 {[%clk 0:00:22]}  Qxd4+ {[%clk 0:00:33]} 32. cxd4 {[%clk 0:00:23]}  c5 {[%clk 0:00:30]} 33. Rd7 {[%clk 0:00:18]}  cxd4 {[%clk 0:00:21]} 34. Rxd5 {[%clk 0:00:17]}  Re8 {[%clk 0:00:21]} 35. Rd6 {[%clk 0:00:16]}  Kg7 {[%clk 0:00:15]} 36. g5 {[%clk 0:00:15]}  d3 {[%clk 0:00:11]} 37. Kf2 {[%clk 0:00:15]}  Kf8 {[%clk 0:00:09]} 38. Ke3 {[%clk 0:00:15]}  Ke7 {[%clk 0:00:09]} 39. Rxa6 {[%clk 0:00:16]}  Rd8 {[%clk 0:00:08]} 40. Kd2 {[%clk 0:00:16]}  Rd4 {[%clk 0:00:05]} 41. Rb6 {[%clk 0:00:14]}  b4 {[%clk 0:00:04]} 42. Rc6 {[%clk 0:00:09]}  Ke8 {[%clk 0:00:04]} 43. Rc4 {[%clk 0:00:09]}  Rd6 {[%clk 0:00:04]} 44. Rxb4 {[%clk 0:00:09]}  Rxe6 {[%clk 0:00:04]} 45. Kxd3 {[%clk 0:00:09]}  Re5 {[%clk 0:00:05]} 46. h4 {[%clk 0:00:10]}  Rf5 {[%clk 0:00:05]} 47. a4 {[%clk 0:00:10]}  Kd7 {[%clk 0:00:05]} 48. Kc3 {[%clk 0:00:10]}  Kc6 {[%clk 0:00:06]} 49. Kb2 {[%clk 0:00:11]}  Kc5 {[%clk 0:00:05]} 50. Ka3 {[%clk 0:00:11]}  Rf1 {[%clk 0:00:05]} 51. Rb7 {[%clk 0:00:12]}  Ra1+ {[%clk 0:00:04]} 52. Kb2 {[%clk 0:00:12]}  Rh1 {[%clk 0:00:04]} 53. Rxh7 {[%clk 0:00:13]}  Rh2+ {[%clk 0:00:04]} 54. Ka3 {[%clk 0:00:13]}  Rh3 {[%clk 0:00:03]} 55. Rg7 {[%clk 0:00:13]}  Rxh4 {[%clk 0:00:02]} 56. Rxg6 {[%clk 0:00:14]} 1-0


[Site "https://www.chess.com"]

[Event "Titled Tuesday Blitz January 25 2022"]
[White "Hakobyan, Aram"]
[Black "Mustafayev, Farid"]
[WhiteFideId "13306677"]
[BlackFideId "13408771"]
[WhiteElo "2557"]
[BlackElo "2129"]
[Result "1-0"]
[Round "04"]
[TimeControl "180+1"]
[Date "2022.01.26"]
[WhiteClock "0:01:31"]
[BlackClock "0:00:29"]

1. b3 {[%clk 0:03:00]}  d5 {[%clk 0:02:58]} 2. Bb2 {[%clk 0:03:01]}  c5 {[%clk 0:02:59]} 3. e3 {[%clk 0:03:01]}  Nc6 {[%clk 0:02:57]} 4. Bb5 {[%clk 0:03:01]}  Bd7 {[%clk 0:02:56]} 5. Nf3 {[%clk 0:03:01]}  f6 {[%clk 0:02:55]} 6. d4 {[%clk 0:03:01]}  e6 {[%clk 0:02:54]} 7. O-O {[%clk 0:03:00]}  cxd4 {[%clk 0:02:55]} 8. exd4 {[%clk 0:03:00]}  Bd6 {[%clk 0:02:56]} 9. c4 {[%clk 0:02:57]}  Nge7 {[%clk 0:02:52]} 10. Nc3 {[%clk 0:02:58]}  a6 {[%clk 0:02:51]} 11. Bxc6 {[%clk 0:02:55]}  bxc6 {[%clk 0:02:52]} 12. Qc1 {[%clk 0:02:50]}  O-O {[%clk 0:02:51]} 13. Ba3 {[%clk 0:02:51]}  Nf5 {[%clk 0:02:31]} 14. Bxd6 {[%clk 0:02:48]}  Nxd6 {[%clk 0:02:32]} 15. Qa3 {[%clk 0:02:44]}  Be8 {[%clk 0:02:14]} 16. Rfe1 {[%clk 0:02:44]}  Bf7 {[%clk 0:02:14]} 17. Qc5 {[%clk 0:02:42]}  Rc8 {[%clk 0:02:08]} 18. h3 {[%clk 0:02:24]}  Re8 {[%clk 0:02:05]} 19. Re2 {[%clk 0:02:24]}  Bh5 {[%clk 0:02:04]} 20. g4 {[%clk 0:02:23]}  Bg6 {[%clk 0:02:04]} 21. Rae1 {[%clk 0:02:21]}  Qd7 {[%clk 0:01:38]} 22. Nd2 {[%clk 0:02:13]}  h5 {[%clk 0:01:28]} 23. f3 {[%clk 0:02:13]}  Nf7 {[%clk 0:01:26]} 24. Kg2 {[%clk 0:02:09]}  e5 {[%clk 0:01:17]} 25. Na4 {[%clk 0:02:09]}  Qd6 {[%clk 0:01:01]} 26. Qxd6 {[%clk 0:02:08]}  Nxd6 {[%clk 0:01:02]} 27. dxe5 {[%clk 0:02:09]}  fxe5 {[%clk 0:01:02]} 28. Rxe5 {[%clk 0:02:10]}  dxc4 {[%clk 0:01:01]} 29. Nxc4 {[%clk 0:02:09]}  Nxc4 {[%clk 0:01:00]} 30. bxc4 {[%clk 0:02:10]}  Red8 {[%clk 0:01:00]} 31. gxh5 {[%clk 0:02:05]}  Rd2+ {[%clk 0:01:00]} 32. Kg3 {[%clk 0:02:04]}  Bf7 {[%clk 0:01:00]} 33. Nb6 {[%clk 0:02:01]}  Rb8 {[%clk 0:01:00]} 34. c5 {[%clk 0:02:01]}  Rxa2 {[%clk 0:01:01]} 35. Rd1 {[%clk 0:01:53]}  Ra5 {[%clk 0:00:57]} 36. Rd7 {[%clk 0:01:48]}  Re8 {[%clk 0:00:53]} 37. Rg5 {[%clk 0:01:42]}  Ra3 {[%clk 0:00:48]} 38. h6 {[%clk 0:01:40]}  g6 {[%clk 0:00:48]} 39. h7+ {[%clk 0:01:32]}  Kg7 {[%clk 0:00:49]} 40. Nc4 {[%clk 0:01:31]}  Rc3 {[%clk 0:00:29]} 41. Nd6 {[%clk 0:01:31]} 1-0


[Site "https://www.chess.com"]

[Event "Titled Tuesday Blitz January 25 2022"]
[White "Hamitevici, Vladimir"]
[Black "Przybylski, Wojciech"]
[WhiteFideId "13902393"]
[BlackFideId "1117599"]
[WhiteElo "2359"]
[BlackElo "2133"]
[Result "1-0"]
[Round "04"]
[TimeControl "180+1"]
[Date "2022.01.26"]
[WhiteClock "0:00:23"]
[BlackClock "0:00:20"]

1. d4 {[%clk 0:03:00]}  Nf6 {[%clk 0:02:59]} 2. Nf3 {[%clk 0:03:00]}  d5 {[%clk 0:02:58]} 3. Bf4 {[%clk 0:03:00]}  c6 {[%clk 0:02:57]} 4. e3 {[%clk 0:02:55]}  Nbd7 {[%clk 0:02:54]} 5. c4 {[%clk 0:02:51]}  e6 {[%clk 0:02:54]} 6. Nc3 {[%clk 0:02:50]}  Be7 {[%clk 0:02:54]} 7. Qc2 {[%clk 0:02:47]}  O-O {[%clk 0:02:54]} 8. cxd5 {[%clk 0:02:34]}  exd5 {[%clk 0:02:54]} 9. Bd3 {[%clk 0:02:35]}  Re8 {[%clk 0:02:53]} 10. h3 {[%clk 0:02:31]}  Nf8 {[%clk 0:02:53]} 11. g4 {[%clk 0:02:24]}  Ne6 {[%clk 0:02:35]} 12. Be5 {[%clk 0:02:17]}  h6 {[%clk 0:02:28]} 13. O-O-O {[%clk 0:02:00]}  c5 {[%clk 0:02:19]} 14. Rdg1 {[%clk 0:01:47]}  cxd4 {[%clk 0:02:06]} 15. exd4 {[%clk 0:01:48]}  Nd7 {[%clk 0:02:00]} 16. Bg3 {[%clk 0:01:33]}  Ndf8 {[%clk 0:01:35]} 17. h4 {[%clk 0:01:28]}  Bf6 {[%clk 0:01:31]} 18. g5 {[%clk 0:01:21]}  hxg5 {[%clk 0:00:56]} 19. hxg5 {[%clk 0:01:11]}  Bxg5+ {[%clk 0:00:47]} 20. Kb1 {[%clk 0:01:02]}  g6 {[%clk 0:00:41]} 21. Nxg5 {[%clk 0:00:53]}  Nxg5 {[%clk 0:00:40]} 22. Be5 {[%clk 0:00:51]}  f6 {[%clk 0:00:37]} 23. Rxg5 {[%clk 0:00:41]}  fxg5 {[%clk 0:00:27]} 24. Rh8+ {[%clk 0:00:30]}  Kf7 {[%clk 0:00:27]} 25. Bxg6+ {[%clk 0:00:30]}  Ke7 {[%clk 0:00:25]} 26. Bxe8 {[%clk 0:00:23]}  Qxe8 {[%clk 0:00:22]} 27. Nxd5+ {[%clk 0:00:23]}  Ke6 {[%clk 0:00:20]} 28. Nc7+ {[%clk 0:00:23]} 1-0


[Site "https://www.chess.com"]

[Event "Titled Tuesday Blitz January 25 2022"]
[White "Hasangatin, Ramil"]
[Black "Shtyka, Sergey"]
[WhiteFideId "4122160"]
[BlackFideId "4138465"]
[WhiteElo "2375"]
[BlackElo "2014"]
[Result "1-0"]
[Round "04"]
[TimeControl "180+1"]
[Date "2022.01.26"]
[WhiteClock "0:02:13"]
[BlackClock "0:00:01"]

1. e4 {[%clk 0:03:00]}  c5 {[%clk 0:00:02]} 2. Nf3 {[%clk 0:02:56]}  Nc6 {[%clk 0:00:03]} 3. Bb5 {[%clk 0:02:56]}  d6 {[%clk 0:00:04]} 4. d4 {[%clk 0:02:55]}  cxd4 {[%clk 0:00:04]} 5. Qxd4 {[%clk 0:02:56]}  Bd7 {[%clk 0:00:05]} 6. Bxc6 {[%clk 0:02:57]}  Bxc6 {[%clk 0:00:05]} 7. Nc3 {[%clk 0:02:57]}  Nf6 {[%clk 0:00:05]} 8. Bg5 {[%clk 0:02:58]}  e6 {[%clk 0:00:05]} 9. O-O-O {[%clk 0:02:58]}  Be7 {[%clk 0:00:06]} 10. Rhe1 {[%clk 0:02:59]}  O-O {[%clk 0:00:05]} 11. Qd2 {[%clk 0:02:59]}  Rc8 {[%clk 0:00:04]} 12. Nd4 {[%clk 0:03:00]}  Qa5 {[%clk 0:00:03]} 13. Kb1 {[%clk 0:02:57]}  Rfd8 {[%clk 0:00:03]} 14. f3 {[%clk 0:02:57]}  Be8 {[%clk 0:00:03]} 15. h4 {[%clk 0:02:55]}  a6 {[%clk 0:00:02]} 16. g4 {[%clk 0:02:52]}  Qc5 {[%clk 0:00:03]} 17. Nce2 {[%clk 0:02:48]}  b5 {[%clk 0:00:02]} 18. Ng3 {[%clk 0:02:49]}  b4 {[%clk 0:00:02]} 19. Rg1 {[%clk 0:02:48]}  a5 {[%clk 0:00:02]} 20. Nh5 {[%clk 0:02:48]}  a4 {[%clk 0:00:01]} 21. Bxf6 {[%clk 0:02:48]}  Bxf6 {[%clk 0:00:02]} 22. Nxf6+ {[%clk 0:02:48]}  gxf6 {[%clk 0:00:02]} 23. Qh6 {[%clk 0:02:27]}  b3 {[%clk 0:00:02]} 24. cxb3 {[%clk 0:02:18]}  axb3 {[%clk 0:00:02]} 25. a3 {[%clk 0:02:19]}  Qb6 {[%clk 0:00:02]} 26. Nf5 {[%clk 0:02:14]}  exf5 {[%clk 0:00:01]} 27. gxf5+ {[%clk 0:02:13]} 1-0


[Site "https://www.chess.com"]

[Event "Titled Tuesday Blitz January 25 2022"]
[White "Havanecz, Bianka"]
[Black "Kislinsky, Alexey"]
[WhiteFideId "704814"]
[BlackFideId "14108801"]
[WhiteElo "2361"]
[BlackElo "2335"]
[Result "1/2-1/2"]
[Round "04"]
[TimeControl "180+1"]
[Date "2022.01.26"]
[WhiteClock "0:02:51"]
[BlackClock "0:00:55"]

1. d4 {[%clk 0:03:00]}  Nf6 {[%clk 0:02:43]} 2. c4 {[%clk 0:03:00]}  g6 {[%clk 0:02:40]} 3. Nc3 {[%clk 0:03:00]}  Bg7 {[%clk 0:02:35]} 4. e4 {[%clk 0:03:01]}  O-O {[%clk 0:02:33]} 5. Bd3 {[%clk 0:03:00]}  c5 {[%clk 0:02:31]} 6. d5 {[%clk 0:03:01]}  d6 {[%clk 0:02:30]} 7. Nge2 {[%clk 0:03:00]}  e6 {[%clk 0:02:23]} 8. O-O {[%clk 0:03:00]}  a6 {[%clk 0:02:23]} 9. a4 {[%clk 0:02:57]}  exd5 {[%clk 0:00:58]} 10. cxd5 {[%clk 0:02:51]}  Nbd7 {[%clk 0:00:55]} 1/2-1/2


[Site "https://www.chess.com"]

[Event "Titled Tuesday Blitz January 25 2022"]
[White "Izoria, Zviad"]
[Black "Koelle, Tobias"]
[WhiteFideId "13601733"]
[BlackFideId "16207378"]
[WhiteElo "2626"]
[BlackElo "2541"]
[Result "1/2-1/2"]
[Round "04"]
[TimeControl "180+1"]
[Date "2022.01.26"]
[WhiteClock "0:00:23"]
[BlackClock "0:02:00"]

1. e4 {[%clk 0:03:00]}  e5 {[%clk 0:02:59]} 2. f4 {[%clk 0:02:59]}  c6 {[%clk 0:02:57]} 3. Nf3 {[%clk 0:02:57]}  d5 {[%clk 0:02:56]} 4. Nc3 {[%clk 0:02:50]}  Nf6 {[%clk 0:02:31]} 5. fxe5 {[%clk 0:02:46]}  Nxe4 {[%clk 0:02:31]} 6. d3 {[%clk 0:02:37]}  Nxc3 {[%clk 0:02:30]} 7. bxc3 {[%clk 0:02:38]}  Be7 {[%clk 0:02:25]} 8. d4 {[%clk 0:02:38]}  O-O {[%clk 0:02:25]} 9. Bd3 {[%clk 0:02:38]}  f6 {[%clk 0:02:26]} 10. O-O {[%clk 0:02:36]}  fxe5 {[%clk 0:02:24]} 11. Nxe5 {[%clk 0:02:31]}  Nd7 {[%clk 0:02:20]} 12. Bxh7+ {[%clk 0:02:04]}  Kxh7 {[%clk 0:02:20]} 13. Qh5+ {[%clk 0:02:04]}  Kg8 {[%clk 0:02:19]} 14. Nf7 {[%clk 0:02:04]}  Rxf7 {[%clk 0:02:02]} 15. Qxf7+ {[%clk 0:02:05]}  Kh8 {[%clk 0:02:00]} 16. Qh5+ {[%clk 0:00:55]}  Kg8 {[%clk 0:02:00]} 17. Qf7+ {[%clk 0:00:56]}  Kh8 {[%clk 0:02:01]} 18. Qh5+ {[%clk 0:00:22]}  Kg8 {[%clk 0:02:00]} 19. Qf7+ {[%clk 0:00:23]} 1/2-1/2


[Site "https://www.chess.com"]

[Event "Titled Tuesday Blitz January 25 2022"]
[White "Kadam, Om Manish"]
[Black "Sarana, Alexey"]
[WhiteFideId "45076294"]
[BlackFideId "24133795"]
[WhiteElo "1729"]
[BlackElo "2665"]
[Result "0-1"]
[Round "04"]
[TimeControl "180+1"]
[Date "2022.01.26"]
[WhiteClock "0:00:12"]
[BlackClock "0:01:58"]

1. e4 {[%clk 0:00:37]}  c5 {[%clk 0:02:59]} 2. Nf3 {[%clk 0:00:37]}  d6 {[%clk 0:02:59]} 3. d4 {[%clk 0:00:36]}  cxd4 {[%clk 0:03:00]} 4. Nxd4 {[%clk 0:00:37]}  Nf6 {[%clk 0:03:01]} 5. Nc3 {[%clk 0:00:37]}  a6 {[%clk 0:03:01]} 6. g3 {[%clk 0:00:37]}  e5 {[%clk 0:02:59]} 7. Nde2 {[%clk 0:00:37]}  Nbd7 {[%clk 0:02:57]} 8. Bg2 {[%clk 0:00:37]}  b5 {[%clk 0:02:57]} 9. a4 {[%clk 0:00:37]}  b4 {[%clk 0:02:57]} 10. Nd5 {[%clk 0:00:37]}  Nxd5 {[%clk 0:02:58]} 11. Qxd5 {[%clk 0:00:38]}  Rb8 {[%clk 0:02:58]} 12. O-O {[%clk 0:00:38]}  Qc7 {[%clk 0:02:55]} 13. Qd1 {[%clk 0:00:24]}  Be7 {[%clk 0:02:53]} 14. Be3 {[%clk 0:00:24]}  O-O {[%clk 0:02:52]} 15. Qd2 {[%clk 0:00:24]}  Nf6 {[%clk 0:02:49]} 16. Rac1 {[%clk 0:00:22]}  Be6 {[%clk 0:02:48]} 17. c4 {[%clk 0:00:21]}  bxc3 {[%clk 0:02:44]} 18. Nxc3 {[%clk 0:00:21]}  Qb7 {[%clk 0:02:43]} 19. Rfd1 {[%clk 0:00:19]}  Bb3 {[%clk 0:02:37]} 20. Re1 {[%clk 0:00:19]}  Rfc8 {[%clk 0:02:36]} 21. h3 {[%clk 0:00:19]}  Rc4 {[%clk 0:02:32]} 22. g4 {[%clk 0:00:20]}  h6 {[%clk 0:02:31]} 23. Bf3 {[%clk 0:00:19]}  Rb4 {[%clk 0:02:29]} 24. Kg2 {[%clk 0:00:14]}  Be6 {[%clk 0:02:29]} 25. Rc2 {[%clk 0:00:14]}  Bb3 {[%clk 0:02:10]} 26. Rcc1 {[%clk 0:00:13]}  Bxa4 {[%clk 0:02:09]} 27. Nxa4 {[%clk 0:00:13]}  Rxa4 {[%clk 0:02:10]} 28. Rc2 {[%clk 0:00:13]}  Rb4 {[%clk 0:02:08]} 29. Rec1 {[%clk 0:00:13]}  Rxb2 {[%clk 0:02:03]} 30. Rxb2 {[%clk 0:00:11]}  Qxb2 {[%clk 0:02:04]} 31. Rc8+ {[%clk 0:00:11]}  Bf8 {[%clk 0:02:01]} 32. Rxb8 {[%clk 0:00:12]}  Qxb8 {[%clk 0:02:01]} 33. Qa2 {[%clk 0:00:12]}  Qb7 {[%clk 0:02:00]} 34. Be2 {[%clk 0:00:12]}  Qxe4+ {[%clk 0:01:58]} 35. Kf1 {[%clk 0:00:12]}  Qh1# {[%clk 0:01:58]} 0-1


[Site "https://www.chess.com"]